Cogmind - Beta 13 @@@ ROGUE MODE // 2024.03.31 @ 21:25:54 Player: SLUGGY Result: Destroyed by S-10 Pest with Light Assault Rifle Performance ------------- Evolutions (1) 500 Regions Visited (3) 600 Robots Destroyed (56) 280 Value Destroyed (1137) 1137 Prototype IDs (2) 40 Alien Tech Used (0) 0 Bonus (8) 8 TOTAL SCORE: 2565 Bonus ------- High Alert Combat Kills 8 Cogmind --------- Core Integrity 0/400 Matter 300/300 Energy 125/125 System Corruption 11% Temperature Cool (0) Movement Rolling (80) Location -9/Storage Parts ------- > --- POWER (1) -------- Light Ion Engine > --- PROPULSION (3) --- Wheel Wheel > --- UTILITY (3) ------ Medium Storage Unit Advanced Targeting Computer Advanced Targeting Computer > --- WEAPON (2) ------- Advanced Beam Cannon Maul > --- INVENTORY (10) --- Light Treads Wheel Autogun Improved Assault Rifle Concussive RPG (1) Maul Peak State ------------ > --- POWER ------------ Ion Engine > --- PROPULSION ------- Improved Aluminum Leg Improved Aluminum Leg Improved Aluminum Leg > --- UTILITY ---------- Medium Storage Unit Advanced Targeting Computer Light Armor Plating > --- WEAPON ----------- Improved Light Cannon Maul > --- INVENTORY -------- Improved Aluminum Leg Advanced Targeting Computer Light Armor Plating Autogun Autogun Autogun Improved Light Cannon Improved Light Cannon Concussive RPG Maul [Rating: 18] Favorites ----------- Power Ion Engine Engine Ion Engine Propulsion Improved Aluminum Leg Leg Improved Aluminum Leg Wheel Wheel Utility Medium Storage Unit Storage Medium Storage Unit Processor Advanced Targeting Computer Protection Light Armor Plating Weapon Maul Energy Gun Medium Laser Energy Cannon Advanced Beam Cannon Ballistic Gun Assault Rifle Ballistic Cannon Improved Light Cannon Launcher Grenade Launcher Impact Weapon Maul Build | -11 -10 -9 -9 ------- Run | Yrd Mat Mat Sto Slots Evolved 2 | . . 2 . Power . | . . . . Propulsion 1 | . . 1 . Utility 1 | . . 1 . Weapon . | . . . . Parts Attached 45 | 6 16 18 5 Power 5 | 1 . 3 1 Engine 5 | 1 . 3 1 Core . | . . . . Reactor . | . . . . Propulsion 18 | 2 5 8 3 Treads . | . . . . Leg 10 | 2 3 5 . Wheel 8 | . 2 3 3 Hover . | . . . . Flight . | . . . . Utility 10 | 1 5 3 1 Device . | . . . . Storage 4 | 1 3 . . Processor 2 | . . 1 1 Hackware . | . . . . Protection 4 | . 2 2 . Artifact . | . . . . Weapon 12 | 2 6 4 . Energy Gun 4 | 2 2 . . Energy Cannon 3 | . . 3 . Ballistic Gun 2 | . 1 1 . Ballistic Cannon 1 | . 1 . . Launcher 1 | . 1 . . Special Weapon . | . . . . Impact Weapon 1 | . 1 . . Slashing Weapon . | . . . . Piercing Weapon . | . . . . Special Melee Weapon . | . . . . Unidentified Prototypes 2 | . . 2 . Corrupted Parts 2 | . . 2 . System Corruption 11 | . . 11 . Parts Lost 20 | . 4 11 5 Power 4 | . . 3 1 Propulsion 10 | . 2 5 3 Utility 4 | . 1 2 1 Weapon 2 | . 1 1 . Highest Loss Streak 4 | . 2 4 3 To Critical Strikes 1 | . 1 . . Average Slot Usage (%) 92 | . 94 91 93 Engine 10 | . 14 7 9 Leg 22 | . 23 26 . Wheel 5 | . 3 2 30 Storage 11 | . 12 11 11 Processor 5 | . . 10 16 Protection 10 | . 12 10 3 Energy Gun 7 | . 14 . . Energy Cannon 4 | . . 9 11 Ballistic Gun 3 | . 7 . . Impact Weapon 7 | . 4 11 11 Naked Turns . | . . . . Heaviest Build 25 | 14 25 25 23 Greatest Support 39 | 20 26 39 30 Greatest Overweight (x) 4 | 1 4 2 . Average Overweight (x) . | . . . . Largest Inventory Capacity 10 | 8 10 10 10 Average Capacity 8 | 6 7 10 10 Most Carried 10 | 5 8 10 7 Average Carried 4 | 2 3 6 6 Final Capacity 10 | 8 10 10 10 Final Carried 7 | 1 7 7 6 Class Distribution -------------------- 80% | Mutant 19% | Scavenger-Mutant Dominant Class ---------------- Mutant | -10/Materials Mutant | -9/Materials Scavenger-Mutant | -9/Storage Resources | -11 -10 -9 -9 ----------- Run | Yrd Mat Mat Sto Matter Collected 995 | 248 281 305 161 Remotely . | . . . . Salvage Created 1431 | 100 377 724 230 Parts 85 | . 36 37 12 Haulers Intercepted 1 | . . . 1 Recyclers Shooed 3 | . 2 1 . Parts Field Recycled . | . . . . Retrieved Matter . | . . . . Parts Self-Destructed . | . . . . Prevented . | . . . . Kills | -11 -10 -9 -9 ------- Run | Yrd Mat Mat Sto Combat Hostiles Destroyed 34 | . 11 19 4 Melee 12 | . . 10 2 Guns 9 | . 9 . . Cannons 1 | . . 1 . AOE 2 | . 2 . . Classes Destroyed 11 | 1 6 3 1 Worker 8 | . 4 3 1 Builder 3 | . 1 1 1 Tunneler 2 | . 1 1 . Hauler 1 | . . . 1 Recycler 1 | 1 . . . Mechanic 1 | . . 1 . Watcher 6 | . 2 4 . Swarmer 12 | . 6 6 . Grunt 15 | . 5 9 1 Duelist 1 | . . 1 . Sentry 6 | . . 3 3 Best Kill Streak 6 | 1 4 6 2 Combat Bots Only 6 | . 4 6 2 Max Kills in Single Turn 1 | 1 1 1 1 Gunslinging . | . . . . Exploded 1 | . 1 . . Melee 1 | . . 1 1 Uniques/NPCs Destroyed . | . . . . Combat | -11 -10 -9 -9 -------- Run | Yrd Mat Mat Sto Hostile Shots Fired 266 | . 69 148 49 Missed 57 | . 11 38 8 Damage Taken 2649 | . 733 1369 547 Core 551 | . 150 298 103 Absorbed by Shields . | . . . . Redirected to Shielding 18 | . 18 . . Core Remaining (%) 70 | 100 40 . . Volleys Fired 145 | 5 86 54 . Largest 2 | 2 2 1 . Hottest 100 | 100 100 68 . Shots Fired 185 | 10 121 54 . Gun 127 | 10 117 . . Cannon 55 | . 1 54 . Launcher 3 | . 3 . . Special . | . . . . Kinetic 38 | . 32 6 . Thermal 144 | 10 86 48 . Explosive 3 | . 3 . . Electromagnetic . | . . . . Robot Hit Streak 6 | 2 6 5 . Robot Miss Streak 7 | 2 7 3 . Penetration Max . | . . . . Secondary Targets 1 | . 1 . . Max Gunslinging Chain 1 | . 1 . . Shots Hit Robots 158 | 4 60 79 15 Core Hits 50 | 2 27 18 3 Critical Kills 1 | . . 1 . Critical Parts Destroyed 13 | . . 11 2 Critical Strikes 19 | 1 3 13 2 Burn 4 | 1 3 . . Smash 15 | . . 13 2 Melee Attacks 76 | . 1 57 18 Impact 76 | . 1 57 18 Slashing . | . . . . Piercing . | . . . . Sneak Attacks 3 | . 1 . 2 Combat Hostiles . | . . . . Follow-up Attacks . | . . . . Damage Inflicted 3983 | 51 1015 2345 572 Guns 784 | 51 733 . . Cannons 655 | . . 655 . Explosions 192 | . 192 . . Melee 2344 | . 82 1690 572 Ramming 8 | . 8 . . Kinetic 255 | . 196 59 . Thermal 1184 | 51 537 596 . Explosive 192 | . 192 . . Electromagnetic . | . . . . Impact 2344 | . 82 1690 572 Slashing . | . . . . Piercing . | . . . . Highest Corruption 11 | . 1 11 11 Average Corruption 5 | . 1 10 11 Corruption Purged . | . . . . Corruption Blocked . | . . . . Effects 42 | . 4 31 7 Message Errors 5 | . . 3 2 Matter Fused 15 | . 2 11 2 Heat Flow Errors 6 | . . 4 2 Energy Discharges 4 | . . 3 1 Data Loss (minor) 4 | . . 4 . Data Loss (major) 1 | . . 1 . Misfires 4 | . 2 2 . Alerts 1 | . . 1 . Weapon Failures 2 | . . 2 . Overload Shots . | . . . . Overflow Damage 665 | . 67 462 136 Projectiles 23 | . . 23 . Explosions . | . . . . Melee 642 | . 67 439 136 Knockbacks 7 | . . 7 . Impact 6 | . . 6 . Kinetic . | . . . . Secondary 1 | . . 1 . Self-Inflicted Damage 81 | . 81 . . Shots 3 | . 3 . . Rammed . | . . . . Targets Rammed 3 | . 3 . . Kicked 3 | . 3 . . Crushed . | . . . . Highest Temperature 574 | 195 574 520 217 Average Temperature 134 | 100 153 119 106 Received Heat Transfer 759 | . 183 387 189 Effects 26 | . 22 4 . Shutdowns 5 | . 4 1 . Energy Bleed 3 | . 3 . . Interference 3 | . 3 . . Matter Decay 5 | . 5 . . Short Circuit 2 | . 2 . . Damage (major) 7 | . 5 2 . Damage (core) 1 | . . 1 . Siege Activations . | . . . . Robots Corrupted . | . . . . Combat Hostiles . | . . . . Parts Fried 13 | . 1 10 2 Impact Corruptions 30 | . 2 21 7 Robots Melted . | . . . . Combat Hostiles . | . . . . Parts Melted 5 | . 3 2 . Heat Transferred 3108 | 222 1813 1073 . Parts Sabotaged . | . . . . Parts Stolen . | . . . . Parts Stripped . | . . . . Power Chain Reactions . | . . . . Alert | -11 -10 -9 -9 ------- Run | Yrd Mat Mat Sto Peak Influence 400 | 5 202 400 285 Initial 115 | . 3 41 115 Average 147 | 1 71 235 191 Maximum Alert Level 2 | . 1 2 1 Low Security (%) 60 | 100 96 19 47 Level 1 37 | . 3 76 52 Level 2 1 | . . 3 . Level 3 . | . . . . Level 4 . | . . . . Level 5 . | . . . . High Security . | . . . . Max Security . | . . . . Squads Dispatched 5 | . 1 3 1 Investigation 3 | . . 2 1 Extermination . | . . . . Reinforcement 2 | . 1 1 . Assault . | . . . . Garrison . | . . . . Intercept . | . . . . Searches Triggered . | . . . . Construction Impeded . | . . . . Haulers Reinforced . | . . . . Active Scanning Responses . | . . . . Cargo Convoy Interrupts . | . . . . Stealth | -11 -10 -9 -9 --------- Run | Yrd Mat Mat Sto Distress Signals 5 | . 2 3 . Communications Jammed . | . . . . Distress Signals . | . . . . Times Spotted 68 | . 26 35 7 Peak Tracking Total 9 | . 5 9 4 Tactical Retreats 5 | . . 4 1 Traps | -11 -10 -9 -9 ------- Run | Yrd Mat Mat Sto Traps Triggered 2 | . . 1 1 Indirectly . | . . . . Trap Hack Attempts . | . . . . Triggered . | . . . . Disarmed . | . . . . Reprogrammed . | . . . . Reused . | . . . . Traps Extracted . | . . . . Installed . | . . . . Triggered . | . . . . Machines | -11 -10 -9 -9 ---------- Run | Yrd Mat Mat Sto Machines Disabled 1 | . . 1 . Max in Single Turn 1 | . . 1 . Machines Repaired . | . . . . Machines Dismantled . | . . . . Machines Sabotaged . | . . . . Overloaded Fab Kills . | . . . . Hacking | -11 -10 -9 -9 --------- Run | Yrd Mat Mat Sto Machines Accessed 6 | . 4 1 1 Terminals 6 | . 4 1 1 Fabricators . | . . . . Repair Stations . | . . . . Recycling Units . | . . . . Scanalyzers . | . . . . Garrison Access . | . . . . Total Hacks 19 | . 14 2 3 Successful 8 | . 6 . 2 Failed 11 | . 8 2 1 Catastrophic 5 | . 2 2 1 Database Lockouts . | . . . . Manual 7 | . 3 2 2 Terminals 19 | . 14 2 3 Fabricators . | . . . . Repair Stations . | . . . . Recycling Units . | . . . . Scanalyzers . | . . . . Garrison Access . | . . . . Terminal Hacks 8 | . 6 . 2 Record 3 | . 3 . . Branch Access Points 1 | . 1 . . Dispatch Records 1 | . . . 1 Patrol Status 1 | . . . 1 Zone Layout 2 | . 2 . . Fabricator Hacks . | . . . . Repair Station Hacks . | . . . . Recycling Unit Hacks . | . . . . Scanalyzer . | . . . . Garrison Access Hacks . | . . . . Unauthorized Hacks . | . . . . Terminals . | . . . . Fabricators . | . . . . Repair Stations . | . . . . Recycling Units . | . . . . Scanalyzers . | . . . . Garrison Access . | . . . . Data Cores Recovered . | . . . . Used . | . . . . Hacking Detections 5 | . 3 1 1 Full Trace Events 5 | . 3 1 1 Feedback Events 1 | . 1 . . Corruption 1 | . 1 . . Feedback Blocked . | . . . . Robot Schematics Acquired . | . . . . Robots Built . | . . . . Authchips . | . . . . Time . | . . . . Total Robot Build Rating . | . . . . Part Schematics Acquired . | . . . . Parts Built . | . . . . Authchips . | . . . . Time . | . . . . Total Part Build Rating . | . . . . Parts Repaired . | . . . . Time . | . . . . Parts Recycled . | . . . . Recycled Matter . | . . . . Retrieved Matter . | . . . . Retrieved Components . | . . . . Parts Scanalyzed . | . . . . Part Schematics Acquired . | . . . . Parts Damaged . | . . . . Bothacking | -11 -10 -9 -9 ------------ Run | Yrd Mat Mat Sto Used RIF Installer . | . . . . Robots Hacked . | . . . . Non-combat . | . . . . Combat . | . . . . Robot Hacks Applied . | . . . . Relay Couplers Released . | . . . . Fabnet Peak Effective % . | . . . . Robots Rewired . | . . . . Allies Hacked . | . . . . Hacks Repelled . | . . . . Allies | -11 -10 -9 -9 -------- Run | Yrd Mat Mat Sto Total Allies . | . . . . Largest Group . | . . . . Highest-Rated Group . | . . . . Highest-Rated Ally . | . . . . Total Orders . | . . . . Ally Attacks . | . . . . Total Damage . | . . . . Kills . | . . . . Allies Corrupted . | . . . . Allies Melted . | . . . . Intel | -11 -10 -9 -9 ------- Run | Yrd Mat Mat Sto Robot Analysis Total . | . . . . Derelict Logs Recovered . | . . . . Drone Launches . | . . . . Drone Recoveries . | . . . . Exploration | -11 -10 -9 -9 ------------- Run | Yrd Mat Mat Sto Turns Passed 2470 | 72 1174 1033 191 Spaces Moved 1451 | 42 789 497 123 Core 24 | 22 2 . . Treads . | . . . . Legs 1108 | 20 636 452 . Wheels 319 | . 151 45 123 Hover . | . . . . Flight . | . . . . Fastest Speed 50 | 50 80 80 80 Average Speed 114 | 104 115 121 80 Slowest Speed 260 | 120 260 260 80 Overloaded Moves . | . . . . Propulsion Burnouts . | . . . . Robots Hopped . | . . . . Cave-ins Triggered . | . . . . Exploration Rate (%) 33 | 4 82 29 18 Regions Visited 3 Branch Regions 1 Pre-discovered Areas . | . . . . Known Exits Taken . | . . . . Unknown Exits Taken 3 | 1 1 1 . Scrap Searched . | . . . . Spaces Dug . | . . . . Terrain Destroyed 5 | . 5 . . Melee . | . . . . Projectile . | . . . . AOE 5 | . 5 . . Terrain Rammed . | . . . . Walls Destroyed . | . . . . Machines Disabled . | . . . . Actions | -11 -10 -9 -9 --------- Run | Yrd Mat Mat Sto Total 1937 | 59 935 762 181 Wait 131 | . 4 105 22 Move 1448 | 41 788 496 123 Hop . | . . . . Pick Up 54 | 6 22 22 4 Fast Attach 5 | 2 3 . . Attach 31 | 4 8 15 4 Detach 2 | . 1 1 . Swap 9 | . 5 3 1 Drop 25 | 1 14 9 1 Fire 145 | 5 86 54 . Melee 76 | . 1 57 18 Ram . | . . . . Kick 3 | . 3 . . Crush . | . . . . Escape Stasis 8 | . . . 8 Rewire . | . . . . Trap . | . . . . Miscellaneous . | . . . . Route ------- -11/Scrapyard -10/Materials (discovered 3 exits: *Mat x2 / *Min) -9/Materials (discovered 2 exits: [*Mat] / *Sto) -9/Storage History --------- Turn | Location | Event 3 | -11/Scrapyard | Discovered new exit (range 15) 73 | -11/Scrapyard | Entered Materials 228 | -10/Materials | Discovered new exit (range 15) 297 | -10/Materials | Identified exit to Mines 302 | -10/Materials | Build established: Mutant 620 | -10/Materials | Discovered new exit (range 16) 796 | -10/Materials | Core integrity fell below 50% 866 | -10/Materials | Discovered new exit (range 15) 1247 | -10/Materials | Entered another Materials area 1247 | -9/Materials | Evolved 2 slots: Propulsion x1, Utility x1 1630 | -9/Materials | System corruption reached 10% 1850 | -9/Materials | Discovered new exit (range 4) 2053 | -9/Materials | Discovered new exit (range 4) 2083 | -9/Materials | Core integrity fell below 50% 2144 | -9/Materials | Lost 4 parts (1p2n1u) 2280 | -9/Materials | Entered Storage 2301 | -9/Storage | Core integrity fell below 20% 2381 | -9/Storage | Lost 3 parts (1p1n1u) 2471 | -9/Storage | Destroyed by S-10 Pest with Light Assault Rifle Last Messages --------------- 02419_ K-01 Serf collects debris. 02419_ Stasis field depleted. 02420_ Acquired Wheel. 02422_ K-01 Serf collects debris. 02423_ Sneak attack on K-01 Serf. 02423_ K-01 Serf suffers critical hit (Smash). 02423_ Destroyed Med. Matter Pod. 02423_ Destroyed Wheel. 02423_ K-01 Serf system corrupted by crushing effect. 02423_ K-01 Serf destroyed. 02427_ Acquired 30 matter. 02432_ Acquired Lgt. Treads. 02451_ ULH&UO&ATH>CWV9JYZBNCSZYPJ8I2V&#OSZ,#AB 02457_ C-30 ARC bursts open, deploying its payload. 02457_ S-10 Pest unfolds itself. 02460_ Wheel destroyed. 02466_ Y-45 Defender suffers critical hit (Smash). 02466_ Destroyed Lgt. Treads. 02466_ Y-45 Defender system corrupted by crushing effect. 02467_ Y-45 Defender system terminally corrupted. Map ----- +----------------------------------------------------+ | | | | | | | | | | | | | | | | | | | | | | | | | | | | | | | | | | | | | ?????????????????????????????????????????????????? | | ??????????????????????????????????????????#####??? | | ???????????################################"T"#### | | ?????????? | | ???????????# * | | ???????????# % =%= | | ?????????????????#########s#########+##### ##### | | ?????????????????????# @ #?? ??# ##### | | ?????????????????????# ! #?" ?# # |=* | | ?????????????????????# % #"Y ## %#!= " | | ?????????????????????# #"" ## [%#%""" | | ?????????????????????# # !## [+!""" | | ?????????????????????# """"" # """ ##^ #!""" | | ?????????????????????# """"" # """ ## # | | ?????????????????????# """"" # """ ## # | | ?????????????????????########### ?? ## ##T## | | ???????????????????????????????#???### ## ###? | | ??????????????????????????????????????### ???? | | ????????????????????????????????????????# T #??? | | ????????????????????????????????????????# #??? | | ????????????????????????????????????????# #??? | | ????????????????????????????????????????#######??? | | ?????????????????????????????????????????????????? | | ?????????????????????????????????????????????????? | | ?????????????????????????????????????????????????? | | ?????????????????????????????????????????????????? | | ?????????????????????????????????????????????????? | | ?????????????????????????????????????????????????? | | ?????????????????????????????????????????????????? | | ?????????????????????????????????????????????????? | | ?????????????????????????????????????????????????? | | ?????????????????????????????????????????????????? | +----------------------------------------------------+ Best States ------------- Heat Dissipation 28 Energy Generation 10 Energy Capacity 400 Matter Stores 300 Matter Capacity 300 Sight Range 16 Terrain Scan Density 10 Armor Coverage 150 Core Shielding 20 Evasion (%) 55 Targeting Accuracy 16 Item Schematics ----------------- None Robot Schematics ------------------ None Fabricated ------------ Nothing Alien Tech Used ----------------- None Achievements -------------- None Challenges ------------ None Game ------ Seed BombardmentGaussClaws Manual? 0 Play Time 00:28:40 Cumulative 6.6 hours Start 2024.03.31 @ 20:56:39 End 2024.03.31 @ 21:25:54 Sessions 1 Manual Loads 0 Difficulty Rogue Special Mode None Game No. 15 Rogue 15 Adventurer 0 Explorer 0 Win Type - Total 0 Types 0/0/0/0/0/0/0/0/0 Lore% 1 Gallery% 12 Achievement% 11 Wizard Run 0 Options --------- Layout 0 ASCII 0 Keyboard 0 Movement Mouse Keybinds 0 Fullscreen 1 Font 24/Smallcaps Map View 76x50 Zoom Use 0% Tactical HUD 1 Map Filters NONE Filters NONE Steam 1 RUN: 78739e1f-3ebc-4a27-b8db-8543d10ee879